bitfinex/quotes_SOLUSD_20240703
["timestamp","ask_amount","ask_price","bid_price","bid_amount"]
[1720023675573,20.0,141.91,141.9,0.8515417]
[1720023676381,20.17,141.91,141.9,0.8515417]
[1720023679267,20.0,141.91,141.9,0.8515417]
[1720023679566,26.7,141.96,141.9,0.8515417]
[1720023679890,20.0,141.94,141.91,7.0464]
[1720023680088,22.5665,142.03,141.92,15.965]
[1720023680301,6.3358,142.03,141.93,7.0454]
[1720023680459,21.12,142.02,141.93,7.0454]
[1720023681185,21.12,142.02,141.92,15.965]
[1720023682461,41.12,142.01,141.92,15.965]
[1720023682661,67.82,142.01,141.92,15.965]
[1720023683095,0.34,142.0,141.92,15.965]
[1720023684092,0.17,142.0,141.92,15.965]
[1720023684869,0.34,142.0,141.92,15.965]
[1720023685575,0.17,142.0,141.92,15.965]
[1720023686294,20.0,142.01,141.92,15.965]
[1720023686490,41.12,142.01,141.92,15.965]
[1720023686671,0.17,142.0,141.92,15.965]
[1720023686874,0.34,142.0,141.92,15.965]
[1720023687182,21.12,141.98,141.92,15.965]
[1720023687374,41.46,141.97,141.92,15.965]
[1720023687571,41.46,141.97,141.91,6.5284]
[1720023687572,68.16,141.97,141.9,0.8515417]
[1720023689389,20.0,141.97,141.9,0.8515417]
[1720023689599,20.0,141.98,141.9,0.8515417]
[1720023689966,41.12,141.98,141.9,0.8515417]
[1720023690774,0.17,141.97,141.9,0.8515417]
[1720023692494,41.12,141.98,141.9,0.8515417]
[1720023692670,0.17,141.99,141.9,0.8515417]
[1720023692671,21.12,141.99,141.9,0.8515417]
[1720023692871,0.34,141.98,141.9,0.8515417]
[1720023693878,21.12,141.97,141.9,0.8515417]
[1720023694193,41.46,141.96,141.9,0.8515417]
[1720023694366,0.17,141.95,141.9,0.8515417]
[1720023696881,21.12,141.94,141.9,0.8515417]
[1720023697091,41.12,141.93,141.9,0.8515417]
[1720023697394,0.34,141.92,141.9,0.8515417]
[1720023698285,0.17,141.92,141.9,0.8515417]
[1720023698486,20.0,141.93,141.9,0.8515417]
[1720023698798,0.17,141.94,141.9,0.8515417]
[1720023699006,20.0,141.94,141.9,0.8515417]
[1720023699786,20.0,141.95,141.9,0.8515417]
[1720023700190,0.17,141.94,141.9,0.8515417]
[1720023700479,20.17,141.94,141.9,0.8515417]
[1720023700980,0.17,141.94,141.9,0.8515417]
[1720023701176,21.12,141.97,141.9,0.8515417]
[1720023701375,0.34,141.96,141.9,0.8515417]
[1720023701905,21.12,141.97,141.9,0.8515417]
[1720023702210,21.12,141.99,141.9,0.8515417]
[1720023702407,41.12,141.98,141.9,0.8515417]
[1720023703189,0.34,141.97,141.9,0.8515417]
[1720023708290,67.82,141.98,141.9,0.8515417]
[1720023708493,41.12,141.98,141.9,0.8515417]
[1720023709824,0.17,141.97,141.9,0.8515417]
[1720023711913,21.21,142.02,141.92,6.088]
[1720023712120,47.89219823,142.06,141.92,6.088]
[1720023712422,21.19219823,142.06,141.92,6.088]
[1720023712600,26.7,142.03,141.92,6.088]
[1720023712908,21.21,142.02,141.92,6.088]
[1720023713299,41.55,142.01,141.92,6.088]
[1720023715418,41.55,142.01,141.93,16.1286]
[1720023715419,20.17,142.01,141.93,16.1286]
[1720023715723,20.0,142.0,141.93,16.1286]
[1720023716213,21.21,142.04,141.93,16.1286]
[1720023716787,48.08,142.03,141.93,16.1286]
[1720023716994,0.17,142.02,141.93,16.1286]
[1720023717612,21.21,142.01,141.93,16.1286]
[1720023717813,21.21,141.99,141.93,16.1286]
[1720023717995,41.55,141.98,141.93,16.1286]
[1720023718191,0.17,141.97,141.93,16.1286]
[1720023718504,0.34,142.0,141.93,16.1286]
[1720023718704,41.55,142.0,141.93,16.1286]
[1720023721511,20.34,142.0,141.93,16.1286]
[1720023721703,20.0,141.99,141.93,16.1286]
[1720023722015,0.17,142.0,141.93,16.1286]
[1720023722523,41.21,142.05,141.93,16.1286]
[1720023723111,21.21,142.05,141.93,16.1286]
[1720023723302,21.21,142.08,141.95,16.5469]
[1720023723816,21.21,142.08,141.96,1.23996167]
[1720023724608,21.21,142.06,141.96,1.23996167]
[1720023724809,20.0,142.05,141.96,1.23996167]
[1720023725716,21.21,142.07,141.96,1.23996167]
[1720023725915,41.21,142.06,141.96,1.23996167]
[1720023726117,0.34,142.05,141.96,1.23996167]
[1720023727693,0.17,142.04,141.96,1.23996167]
[1720023727915,20.34,142.06,141.96,1.23996167]
[1720023728425,20.0,142.06,141.98,15.5323]
[1720023728600,20.0,142.08,141.99,1.23969968]
[1720023729924,21.21,142.09,141.99,1.23969968]
[1720023730131,21.21,142.11,141.99,1.23969968]
[1720023730306,21.21,142.11,142.01,6.1383]
[1720023730500,21.21,142.11,142.02,1.2394378]
[1720023731008,21.21,142.11,142.03,15.7279]
[1720023731323,21.21,142.14,142.04,1.23926328]
[1720023731716,21.21,142.14,142.03,15.7279]
[1720023732807,0.34,142.13,142.03,15.7279]
[1720023733033,21.21,142.1,142.03,15.7279]
[1720023733269,20.34,142.09,142.03,15.7279]
[1720023734239,20.0,142.09,142.03,15.7279]
[1720023734415,20.0,142.15,142.03,15.7279]
[1720023734734,26.7,142.16,142.03,15.7279]
[1720023734938,26.7,142.14,142.03,15.7279]
[1720023735305,21.21,142.13,142.03,15.7279]
[1720023735807,0.34,142.12,142.03,15.7279]
[1720023736031,21.21,142.11,142.03,15.7279]
[1720023736231,20.17,142.1,142.03,15.7279]
[1720023737229,20.0,142.09,142.03,42.4279]
[1720023737435,20.0,142.12,142.03,42.4279]
[1720023737737,41.21,142.12,142.03,15.7279]
[1720023738808,0.34,142.11,142.03,15.7279]
[1720023739710,0.17,142.11,142.03,15.7279]
[1720023739930,20.0,142.12,142.03,42.4279]
[1720023740136,20.0,142.16,142.04,0.17]
[1720023740719,41.21,142.17,142.06,16.3088]
[1720023741239,21.21,142.18,142.06,43.0088]
[1720023741542,6.4226,142.22,142.09,16.4134]
[1720023741712,21.21,142.2,142.09,16.4134]
[1720023742406,21.21,142.19,142.09,16.4134]
[1720023742836,6.4226,142.22,142.1,15.4495]
[1720023742837,21.21,142.22,142.1,15.4495]
[1720023743038,21.21,142.22,142.09,26.7]
[1720023743039,21.21,142.22,142.12,16.2414]
[1720023743412,21.21,142.24,142.12,16.2414]
[1720023744123,41.21,142.23,142.12,16.2414]
[1720023744323,6.0813,142.32,142.16,16.2989]
[1720023744649,26.7,142.3,142.17,6.5292]
[1720023745244,21.21,142.29,142.17,6.5292]
[1720023746537,21.21,142.32,142.18,42.9989]
[1720023746845,21.21,142.32,142.19,0.17]
[1720023747015,6.0813,142.36,142.23,21.4036]
[1720023747348,32.7813,142.36,142.23,21.4036]
[1720023747641,21.21,142.33,142.23,21.4036]
[1720023748144,21.21,142.31,142.23,21.4036]
[1720023748448,41.21,142.3,142.23,21.4036]
[1720023748740,0.34,142.29,142.23,21.4036]
[1720023749318,0.34,142.29,142.23,15.066]
[1720023749514,21.21,142.28,142.18,6.4301]
[1720023749738,20.17,142.27,142.19,15.6168]
[1720023749944,20.34,142.27,142.19,15.6168]
[1720023750115,20.17,142.27,142.19,15.6168]
[1720023750324,0.17,142.27,142.19,15.6168]
[1720023750629,0.34,142.27,142.19,15.6168]
[1720023752446,21.21,142.24,142.19,15.6168]
[1720023752644,41.21,142.23,142.19,15.6168]
[1720023752824,41.55,142.23,142.19,15.6168]
[1720023754327,20.34,142.23,142.19,15.6168]
[1720023755012,20.17,142.23,142.19,15.6168]
[1720023755215,20.0,142.22,142.19,15.6168]
[1720023755437,41.21,142.27,142.19,15.6168]
[1720023755721,26.7,142.31,142.19,15.6168]
[1720023756425,21.21,142.3,142.19,15.6168]
[1720023756712,0.17,142.29,142.19,15.6168]
[1720023756912,47.91,142.31,142.19,15.6168]
[1720023757746,21.21,142.3,142.19,15.6168]
[1720023757919,21.21,142.34,142.2,0.17]
[1720023758122,21.21,142.32,142.2,0.17]
[1720023758320,41.21,142.31,142.2,0.17]
[1720023758622,20.0,142.3,142.2,0.17]
[1720023759034,41.21,142.3,142.19,15.6168]
[1720023759941,0.34,142.29,142.19,15.6168]
[1720023761638,21.21,142.28,142.19,15.6168]
[1720023761831,21.21,142.26,142.19,15.6168]
[1720023762154,20.17,142.25,142.19,15.6168]
[1720023762319,20.34,142.25,142.19,15.6168]
[1720023762517,20.17,142.25,142.19,15.6168]
[1720023762736,0.17,142.24,142.19,15.6168]
[1720023763762,20.0,142.29,142.19,15.6168]
[1720023763928,21.21,142.34,142.19,15.6168]
[1720023764335,21.21,142.34,142.2,0.17]
[1720023765146,21.21,142.32,142.2,0.17]
[1720023765337,20.0,142.33,142.2,0.17]
[1720023765338,20.0,142.31,142.21,22.9586]
[1720023765529,0.17,142.3,142.21,22.9586]
[1720023766262,23.35683956,142.37,142.21,22.9586]
[1720023766439,21.21,142.36,142.22,0.17]
[1720023767363,21.21,142.34,142.22,0.17]
[1720023767565,5.36387425,142.4,142.24,6.5856]
[1720023767731,5.36387425,142.4,142.25,16.0605]
[1720023767938,0.8515417,142.41,142.27,16.0605]
[1720023768132,0.8515417,142.41,142.28,16.0605]
[1720023771145,0.34,142.4,142.3,16.2917]
[1720023771764,21.55,142.4,142.3,16.2917]
[1720023772064,41.21,142.39,142.3,16.2917]
[1720023772261,0.34,142.38,142.3,16.2917]
[1720023773440,0.17,142.38,142.3,16.2917]
[1720023773853,0.34,142.39,142.3,16.2917]
[1720023774162,41.22,142.4,142.3,16.2917]
[1720023774763,20.01,142.4,142.3,16.2917]
[1720023775072,0.8515417,142.41,142.3,16.2917]
[1720023775948,0.8515417,142.41,142.32,6.0711]
[1720023776145,0.8515417,142.41,142.33,16.0511]
[1720023777864,0.8515417,142.41,142.34,45.0]
[1720023781469,0.8515417,142.41,142.35,1.40253026]
[1720023781781,0.8515417,142.41,142.34,45.0]
[1720023782142,0.8515417,142.41,142.33,16.0511]
[1720023782472,0.8515417,142.41,142.33,26.54849419]
[1720023782984,0.8515417,142.41,142.33,16.0511]
[1720023783144,0.8515417,142.41,142.33,26.54849419]
[1720023783350,0.8515417,142.41,142.33,16.0511]
[1720023783574,0.8515417,142.41,142.34,55.83400725]
[1720023783943,0.8515417,142.41,142.34,45.34]
[1720023784148,0.8515417,142.41,142.35,15.2186]
[1720023784476,20.0,142.49,142.37,15.2186]
[1720023784655,20.0,142.5,142.38,45.0]
[1720023785748,13.3989408,142.54,142.39,6.1935]
[1720023785958,13.3989408,142.54,142.4,60.9012]
[1720023786157,7.3063408,142.54,142.4,60.9012]
[1720023786375,0.8515417,142.55,142.41,0.17]
[1720023786584,0.8515417,142.55,142.42,6.615]
[1720023786877,0.8515417,142.55,142.43,60.9571]
[1720023787449,0.8515417,142.55,142.44,1.40366628]
[1720023787675,0.8515417,142.55,142.43,60.9571]
[1720023787867,0.8515417,142.55,142.43,60.7871]
[1720023789274,0.17,142.54,142.43,60.7871]
[1720023789481,0.34,142.54,142.43,60.7871]
[1720023790480,100.34,142.54,142.43,15.7871]
[1720023790649,65.0,142.53,142.43,15.7871]
[1720023790857,0.34,142.52,142.43,15.7871]
[1720023791967,0.34,142.52,142.44,45.0]
[1720023793980,20.8515417,142.55,142.44,45.0]
[1720023794274,20.0,142.54,142.44,45.0]
[1720023794481,0.8515417,142.55,142.44,45.0]
[1720023796489,0.34,142.54,142.44,45.0]
[1720023796984,0.8515417,142.55,142.45,21.4678]
[1720023797188,0.8515417,142.55,142.47,16.0738]
[1720023797387,0.8515417,142.55,142.48,6.4855]
[1720023797590,0.8515417,142.55,142.49,45.0]
[1720023798772,0.8515417,142.55,142.5,16.6176]
[1720023798970,0.8515417,142.55,142.51,45.0]
[1720023800387,0.17,142.54,142.5,16.6176]
[1720023800696,0.34,142.54,142.5,16.6176]
[1720023800874,0.8515417,142.55,142.5,16.6176]
[1720023801075,0.17,142.54,142.5,16.6176]
[1720023801266,0.34,142.54,142.5,16.6176]
[1720023801973,0.17,142.54,142.5,16.6176]
[1720023802167,0.8515417,142.55,142.5,16.6176]
[1720023802761,0.8515417,142.55,142.51,45.0]
[1720023805189,0.8515417,142.55,142.5,16.6176]
[1720023806586,0.8515417,142.55,142.51,45.0]
[1720023808475,0.8515417,142.55,142.5,16.6176]
[1720023808797,0.17,142.54,142.5,16.6176]
[1720023810377,0.34,142.54,142.48,6.4855]
[1720023812275,0.34,142.54,142.47,15.6778]
[1720023812902,0.34,142.54,142.44,6.1607]
[1720023813201,16.6943,142.54,142.43,15.0837]
[1720023813504,100.0,142.53,142.43,15.0837]
[1720023813663,20.34,142.52,142.4,22.2952]
[1720023814799,20.34,142.52,142.41,45.0]
[1720023817703,6.4405,142.51,142.4,22.2952]
[1720023817871,20.34,142.5,142.4,15.7975]
[1720023818602,20.0,142.5,142.4,15.7975]
[1720023818810,21.9887642,142.54,142.42,6.0596]
[1720023818969,7.0395417,142.55,142.43,45.0]
[1720023819298,0.8515417,142.55,142.44,15.7032]
[1720023819603,0.8515417,142.55,142.45,45.0]
[1720023820110,0.8515417,142.55,142.46,26.88]
[1720023820398,0.8515417,142.55,142.47,51.2163]
[1720023821383,0.8515417,142.55,142.49,26.54]
[1720023821588,0.8515417,142.55,142.5,45.17]
[1720023822102,0.8515417,142.55,142.51,45.0]
[1720023822309,0.8515417,142.55,142.49,45.0]
[1720023822310,0.04171601,142.61,142.52,0.34]
[1720023822474,0.04171601,142.61,142.52,0.17]
[1720023824472,0.04171601,142.61,142.54,15.3895]
[1720023824788,0.8515417,142.69,142.55,66.55]
[1720023825172,0.8515417,142.69,142.57,29.84]
[1720023825375,0.8515417,142.69,142.58,66.55]
[1720023825588,0.8515417,142.69,142.58,45.34]
[1720023827777,0.8515417,142.69,142.58,66.55]
[1720023828709,0.8515417,142.69,142.6,21.21]
[1720023828999,0.8515417,142.69,142.61,45.34]
[1720023830088,13.27867455,142.81,142.63,43.4144]
[1720023830293,6.0125,142.81,142.64,66.55]
[1720023831184,0.8515417,142.84,142.64,45.34]
[1720023831588,0.8515417,142.84,142.67,29.84]
[1720023831785,0.8515417,142.84,142.69,6.1158]
[1720023831980,0.8515417,142.84,142.7,0.34]
[1720023832184,0.8515417,142.84,142.7,45.34]
[1720023833111,0.8515417,142.84,142.71,29.84]
[1720023833316,0.8515417,142.84,142.72,61.5313]
[1720023834209,0.8515417,142.84,142.72,91.3713]
[1720023835025,0.8515417,142.84,142.73,6.0016]
[1720023835195,0.8515417,142.84,142.74,145.34]
[1720023835394,0.8515417,142.84,142.74,45.34]
[1720023838798,0.8515417,142.84,142.76,29.84]
[1720023839131,0.8515417,142.84,142.77,0.34]
[1720023839709,0.8515417,142.84,142.75,36.5656]
[1720023839710,0.8515417,142.84,142.76,0.34]
[1720023842697,0.8515417,142.84,142.75,16.5656]
[1720023843398,0.17,142.83,142.75,16.5656]
[1720023843597,0.8515417,142.84,142.75,16.5656]
[1720023846719,0.8515417,142.84,142.76,0.17]
[1720023846938,0.8515417,142.84,142.75,16.5656]
[1720023847513,0.8515417,142.84,142.77,22.4851]
[1720023847820,31.1827,142.94,142.78,0.34]
[1720023848342,31.1827,142.94,142.77,22.4851]
[1720023848715,20.0,142.93,142.78,0.17]
[1720023848917,20.0,142.93,142.78,0.34]
[1720023849532,0.8515417,142.98,142.79,22.4851]
[1720023849836,0.8515417,142.98,142.81,6.4348]
[1720023850131,0.8515417,142.98,142.83,15.0229]
[1720023850309,0.8515417,142.98,142.84,0.34]
[1720023851840,20.8515417,142.98,142.84,30.17]
[1720023852627,20.8515417,142.98,142.84,0.17]
[1720023852819,0.34,142.97,142.84,0.17]
[1720023853320,0.17,142.96,142.84,0.17]
[1720023853525,0.34,142.97,142.83,15.0229]
[1720023854903,20.8515417,142.98,142.83,15.0229]
[1720023855238,50.6915417,142.98,142.83,15.0229]
[1720023855608,25.0,142.97,142.83,15.0229]
[1720023855810,20.0,142.96,142.83,15.0229]
[1720023856334,0.34,142.95,142.83,15.0229]
[1720023856520,45.34,142.96,142.83,15.0229]
[1720023856719,20.0,142.95,142.83,15.0229]
[1720023856941,0.17,142.94,142.83,15.0229]
[1720023857135,0.34,142.94,142.83,15.0229]
[1720023857530,0.8515417,142.98,142.83,15.0229]
[1720023858817,20.8515417,142.98,142.84,0.17]
[1720023859640,20.8515417,142.98,142.85,6.5869]
[1720023860821,0.34,142.97,142.85,6.5869]
[1720023861017,0.8515417,142.98,142.87,15.1725]
[1720023861339,0.8515417,142.98,142.88,0.17]
[1720023861740,0.8515417,142.98,142.88,0.34]
[1720023861913,0.8515417,142.98,142.88,0.17]
[1720023862118,0.8515417,142.98,142.87,15.1725]
[1720023862318,0.8515417,142.98,142.88,0.17]
[1720023862940,0.8515417,142.98,142.88,0.34]
[1720023863122,0.8515417,142.98,142.86,15.1725]
[1720023863335,0.8515417,142.98,142.89,22.9247]
[1720023863637,0.8515417,142.98,142.9,0.17]
[1720023863837,0.8515417,142.98,142.9,0.34]
[1720023864141,0.8515417,142.98,142.9,0.17]
[1720023864331,0.8515417,142.98,142.89,22.9247]
[1720023864830,0.8515417,142.98,142.89,22.0765]
[1720023866146,0.8515417,142.98,142.9,1.39906505]
[1720023866451,0.8515417,142.98,142.89,6.4974]
[1720023866629,20.04158997,143.04,142.86,15.1725]
[1720023866630,0.04158997,143.04,142.91,6.3345]
[1720023866949,0.04158997,143.04,142.92,1.73851236]
[1720023867240,0.04158997,143.04,142.93,1.39854287]
[1720023867824,0.04158997,143.04,142.94,15.5419]
[1720023869649,6.136,143.03,142.94,15.5419]
[1720023869836,0.17,143.02,142.94,15.5419]
[1720023870148,20.34,143.02,142.9,15.456]
[1720023870329,45.0,143.01,142.9,15.456]
[1720023870648,20.34,143.0,142.9,15.456]
[1720023871425,0.34,143.0,142.9,15.456]
[1720023871643,0.34,143.01,142.9,15.456]
[1720023871843,20.0,143.02,142.9,15.456]
[1720023873124,0.34,143.01,142.9,15.456]
[1720023873320,20.0,143.02,142.9,15.456]
[1720023874744,0.34,143.01,142.9,15.456]
[1720023874943,45.34,143.01,142.9,15.456]
[1720023875147,20.0,143.0,142.9,15.456]
[1720023875345,0.34,142.99,142.9,15.456]
[1720023875866,45.34,142.99,142.9,15.456]
[1720023876021,20.0,142.98,142.9,15.456]
[1720023876226,0.34,142.97,142.9,15.456]
[1720023878947,20.0,143.01,142.9,15.456]
[1720023879665,7.25190577,143.02,142.9,15.456]
[1720023879865,0.04158997,143.04,142.92,6.4034]
[1720023881637,0.04158997,143.04,142.93,15.1063]
[1720023882054,0.04158997,143.04,142.93,16.35116724]
[1720023882244,0.04158997,143.04,142.93,15.1063]
[1720023883147,0.17,143.01,142.93,15.1063]
[1720023883863,0.04158997,143.04,142.93,15.1063]
[1720023885360,0.21158997,143.04,142.93,15.1063]
[1720023885873,0.04158997,143.04,142.94,0.17]
[1720023886069,0.04158997,143.04,142.93,15.1063]
[1720023887068,0.04158997,143.04,142.95,15.1184]
[1720023887467,0.04158997,143.04,142.96,0.17]
[1720023887851,0.04158997,143.04,142.95,15.1184]
[1720023888038,0.04158997,143.04,142.96,0.17]
[1720023888243,0.04158997,143.04,142.95,15.1184]
[1720023891074,0.17,143.02,142.95,15.1184]
[1720023891783,0.17,143.03,142.95,15.1184]
[1720023892058,0.34,143.03,142.95,15.1184]
[1720023892267,0.17,143.03,142.95,15.1184]
[1720023892872,0.34,143.03,142.95,15.1184]
[1720023896772,0.04158997,143.04,142.95,15.1184]
[1720023897790,0.04158997,143.04,142.96,0.62094554]
[1720023898149,0.04158997,143.04,142.95,15.1184]
[1720023901668,0.21158997,143.04,142.95,15.1184]
[1720023901882,0.17,143.03,142.95,15.1184]
[1720023902856,95.18,143.03,142.92,15.9894]
[1720023903073,50.18,143.03,142.92,15.9894]
[1720023904368,45.0,143.02,142.92,15.9894]
[1720023904565,20.34,143.01,142.92,15.9894]
[1720023904763,0.34,143.0,142.92,15.9894]
[1720023905562,20.34,143.0,142.92,15.9894]
[1720023905787,45.0,142.99,142.92,15.9894]
[1720023906085,20.34,142.98,142.92,15.9894]
[1720023907284,20.0,142.97,142.92,15.9894]
[1720023907587,0.34,142.96,142.9,6.5351]
[1720023907759,0.34,142.95,142.9,6.5351]
[1720023907965,20.34,142.98,142.9,6.5351]
[1720023908987,5.57433698,143.03,142.9,6.5351]
[1720023909173,5.57433698,143.03,142.91,1.39920249]
[1720023909378,29.88158997,143.04,142.9,6.5351]
[1720023909579,29.88158997,143.04,142.91,15.7361]
[1720023909787,0.04158997,143.04,142.91,15.7361]
[1720023910481,20.04158997,143.04,142.91,15.7361]
[1720023910998,27.28797349,143.04,142.91,17.13528018]
[1720023911178,0.34,143.03,142.91,17.13528018]
[1720023911380,45.34,143.03,142.91,17.13528018]
[1720023911584,20.0,143.02,142.91,15.7361]
[1720023911779,0.34,143.01,142.91,15.7361]
[1720023912368,0.34,143.01,142.91,17.13531727]
[1720023912962,0.34,143.02,142.91,15.7361]
[1720023913378,20.0,143.03,142.91,15.7361]
[1720023913768,20.0,143.03,142.92,6.2931]
[1720023913974,0.04158997,143.04,142.93,15.3377]
[1720023914281,0.04158997,143.04,142.94,6.1436]
[1720023915195,7.24439262,143.09,142.98,6.1436]
[1720023915367,0.8515417,143.12,142.99,16.4229]
[1720023916189,0.8515417,143.12,143.01,15.0585]
[1720023916596,0.8515417,143.12,143.02,1.37379415]
[1720023916972,0.8515417,143.12,143.0,6.6947]
[1720023916973,7.24014505,143.18,143.04,15.0585]
[1720023917183,29.84,143.24,143.05,6.552]
[1720023917372,29.84,143.24,143.06,0.17]
[1720023917683,129.84,143.24,143.06,0.17]
[1720023918069,129.84,143.24,143.06,0.76374622]
[1720023918271,112.06479861,143.26,143.06,0.17]
[1720023918473,129.84,143.24,143.07,15.8214]
[1720023918793,29.84,143.24,143.08,0.17]
[1720023919087,29.84,143.24,143.07,15.8214]
[1720023919292,29.84,143.2,143.07,15.8214]
[1720023919676,20.0,143.19,143.07,15.8214]
[1720023920175,7.23685995,143.26,143.09,6.609]
[1720023920494,37.07685995,143.26,143.09,6.609]
[1720023920692,29.84,143.26,143.09,6.609]
[1720023920912,29.84,143.26,143.1,1.33874586]
[1720023921078,29.84,143.26,143.11,1.3389164]
[1720023922193,20.0,143.25,143.09,6.609]
[1720023922396,0.17,143.24,143.09,6.609]
[1720023923422,0.17,143.24,143.09,8.00604153]
[1720023923569,8.08649505,143.27,143.14,5.7278]
[1720023923910,8.08649505,143.27,143.09,100.0]
[1720023923911,8.08649505,143.27,143.17,5.7278]
[1720023924194,100.0,143.24,143.07,21.1713]
[1720023924497,100.0,143.2,143.07,21.1713]
[1720023924708,100.0,143.22,143.07,21.1713]
[1720023925083,65.0,143.21,143.07,21.1713]
[1720023925284,0.34,143.2,143.07,21.1713]
[1720023925591,100.34,143.2,143.07,21.1713]
[1720023925811,20.0,143.19,143.07,21.1713]
[1720023925993,145.34,143.18,143.07,21.1713]
[1720023926183,20.0,143.17,143.07,21.1713]
[1720023926385,20.0,143.19,143.07,21.1713]
[1720023926893,20.0,143.21,143.07,21.1713]
[1720023927903,120.0,143.22,143.07,21.1713]
[1720023928090,125.76802606,143.22,143.07,21.1713]
[1720023928398,0.34,143.21,143.07,21.1713]
[1720023928603,100.0,143.2,143.07,21.1713]
[1720023928801,20.34,143.19,143.07,21.1713]
[1720023929992,0.34,143.19,143.07,21.1713]
[1720023930498,20.34,143.19,143.07,21.1713]
[1720023930686,65.34,143.19,143.07,21.1713]
[1720023931090,20.34,143.19,143.07,21.1713]
[1720023931295,100.0,143.17,143.07,21.1713]
[1720023931597,129.84,143.15,143.07,21.1713]
[1720023931904,20.34,143.14,143.07,21.1713]
[1720023932102,20.34,143.14,143.02,21.7706]
[1720023933392,120.34,143.14,143.02,21.7706]
[1720023933592,20.34,143.14,143.02,21.7706]
[1720023934111,120.34,143.14,143.02,21.7706]
[1720023934293,100.0,143.12,143.02,21.7706]
[1720023934612,95.01,143.11,143.02,21.7706]
[1720023934916,100.0,143.09,143.02,21.7706]
[1720023935089,0.34,143.08,143.02,21.7706]
[1720023935407,0.17,143.07,143.02,21.7706]
[1720023937590,0.34,143.07,143.02,21.7706]
[1720023937791,0.17,143.06,143.02,21.7706]
[1720023938015,0.34,143.08,143.02,21.7706]
[1720023940313,0.17,143.08,143.02,21.7706]
[1720023940618,100.0,143.11,143.02,21.7706]
[1720023940999,20.0,143.1,143.02,21.7706]
[1720023941207,100.0,143.08,142.98,22.7519]
[1720023941414,20.0,143.07,142.98,22.7519]
[1720023941717,0.17,143.06,142.98,22.7519]
[1720023941917,0.34,143.06,142.98,22.7519]
[1720023942223,0.17,143.05,142.98,22.7519]
[1720023942519,0.34,143.07,142.98,22.7519]
[1720023943440,20.0,143.08,142.98,22.7519]
[1720023943922,20.0,143.09,142.98,22.7519]
[1720023944695,0.17,143.08,142.98,22.7519]
[1720023944992,20.0,143.09,142.98,22.7519]
[1720023945192,29.84,143.11,142.98,22.7519]
[1720023945415,129.84,143.11,142.98,22.7519]
[1720023946124,29.84,143.11,142.98,22.7519]
[1720023946353,0.34,143.1,142.98,22.7519]
[1720023946619,20.34,143.1,142.98,22.7519]
[1720023948229,20.0,143.1,142.98,22.7519]
[1720023949330,0.17,143.09,142.98,22.7519]
[1720023949531,0.34,143.09,142.98,22.7519]
[1720023950104,0.34,143.09,142.99,0.79196797]
[1720023950901,0.34,143.09,142.98,22.7519]
[1720023951726,100.0,143.08,142.98,22.7519]
[1720023951905,50.18,143.07,142.98,22.7519]